[Event "Early-Titled-Tuesday-Blitz-April-16-2024"]
[Site "Chess.com"]
[Date "2024.04.16"]
[Round "3"]
[White "Kushch_Nikolai"]
[Black "Bwert2602"]
[Result "1-0"]
[WhiteElo "2378"]
[BlackElo "2153"]
[TimeControl "180+1"]
[EndTime "8:25:41 PDT"]
[Termination "Kushch_Nikolai won by resignation"]

1. Nf3 {[%clk 0:02:59.4]} 1... b6 {[%clk 0:02:58.1]} 2. g3 {[%clk 0:02:58.6]}
2... c5 {[%clk 0:02:58.4]} 3. Bg2 {[%clk 0:02:58.6]} 3... Bb7 {[%clk 0:02:59]}
4. O-O {[%clk 0:02:58.7]} 4... g6 {[%clk 0:02:59.5]} 5. c4 {[%clk 0:02:57.3]}
5... Bg7 {[%clk 0:02:59.8]} 6. Nc3 {[%clk 0:02:57.1]} 6... Nf6 {[%clk 0:03:00]}
7. e3 {[%clk 0:02:51.8]} 7... Ne4 {[%clk 0:02:54.5]} 8. Nxe4 {[%clk 0:02:49.3]}
8... Bxe4 {[%clk 0:02:55.4]} 9. d3 {[%clk 0:02:49.5]} 9... Bc6 {[%clk
0:02:50.5]} 10. Qc2 {[%clk 0:02:46.7]} 10... O-O {[%clk 0:02:46.3]} 11. a3
{[%clk 0:02:44.3]} 11... d5 {[%clk 0:02:41.9]} 12. cxd5 {[%clk 0:02:43.8]} 12...
Bxd5 {[%clk 0:02:41.1]} 13. Rb1 {[%clk 0:02:42.8]} 13... Nc6 {[%clk 0:02:39.4]}
14. Bd2 {[%clk 0:02:41.5]} 14... Rc8 {[%clk 0:02:38.8]} 15. Rfd1 {[%clk
0:02:40.3]} 15... Ne5 {[%clk 0:02:33.7]} 16. e4 {[%clk 0:02:34.4]} 16... Nxf3+
{[%clk 0:02:24.3]} 17. Bxf3 {[%clk 0:02:33.4]} 17... Bb7 {[%clk 0:02:24.9]} 18.
Be3 {[%clk 0:02:31.2]} 18... f5 {[%clk 0:02:24.7]} 19. Bg2 {[%clk 0:02:30]}
19... Kh8 {[%clk 0:02:14.3]} 20. Qe2 {[%clk 0:02:23.1]} 20... e5 {[%clk
0:02:12.6]} 21. b4 {[%clk 0:02:21.6]} 21... f4 {[%clk 0:02:08.2]} 22. gxf4
{[%clk 0:02:19.6]} 22... exf4 {[%clk 0:02:09.1]} 23. Bc1 {[%clk 0:02:18.3]}
23... Qh4 {[%clk 0:01:55.9]} 24. bxc5 {[%clk 0:02:02.6]} 24... Rxc5 {[%clk
0:01:56.8]} 25. Bf3 {[%clk 0:01:58]} 25... Rg5+ {[%clk 0:01:40.8]} 26. Kh1
{[%clk 0:01:57.7]} 26... Bd4 {[%clk 0:01:37.4]} 27. Bb2 {[%clk 0:01:54.9]} 27...
Rd8 {[%clk 0:01:33.4]} 28. Bxd4+ {[%clk 0:01:53.2]} 28... Rxd4 {[%clk 0:01:34]}
29. Qb2 {[%clk 0:01:50.1]} 1-0

[Event "Early-Titled-Tuesday-Blitz-April-16-2024"]
[Site "Chess.com"]
[Date "2024.04.16"]
[Round "3"]
[White "David_Arutinian"]
[Black "Lion-Al-Messi"]
[Result "1-0"]
[WhiteElo "2823"]
[BlackElo "2579"]
[TimeControl "180+1"]
[EndTime "8:25:58 PDT"]
[Termination "David_Arutinian won by resignation"]

1. Nf3 {[%clk 0:03:00.9]} 1... Nf6 {[%clk 0:02:59.4]} 2. c4 {[%clk 0:03:00.3]}
2... b6 {[%clk 0:02:59.6]} 3. g3 {[%clk 0:02:57.6]} 3... Bb7 {[%clk 0:02:59.9]}
4. Bg2 {[%clk 0:02:58.3]} 4... c5 {[%clk 0:02:56]} 5. O-O {[%clk 0:02:58.8]}
5... g6 {[%clk 0:02:56.2]} 6. Nc3 {[%clk 0:02:54.5]} 6... Bg7 {[%clk 0:02:55.9]}
7. d4 {[%clk 0:02:55.1]} 7... cxd4 {[%clk 0:02:55.9]} 8. Qxd4 {[%clk 0:02:56]}
8... Nc6 {[%clk 0:02:56.1]} 9. Qd2 {[%clk 0:02:54.8]} 9... O-O {[%clk
0:02:54.8]} 10. Rd1 {[%clk 0:02:48.2]} 10... Na5 {[%clk 0:02:53.1]} 11. b3
{[%clk 0:02:47.9]} 11... Ne4 {[%clk 0:02:43.7]} 12. Nxe4 {[%clk 0:02:48]} 12...
Bxa1 {[%clk 0:02:42]} 13. Nc3 {[%clk 0:02:48.6]} 13... d6 {[%clk 0:02:30.3]} 14.
Ba3 {[%clk 0:02:47.4]} 14... Bxc3 {[%clk 0:02:29.1]} 15. Qxc3 {[%clk 0:02:48.3]}
15... Rc8 {[%clk 0:02:27]} 16. Bb2 {[%clk 0:02:47]} 16... f6 {[%clk 0:02:25.4]}
17. Qe3 {[%clk 0:02:42.5]} 17... Qd7 {[%clk 0:02:17.5]} 18. h4 {[%clk
0:02:42.6]} 18... e5 {[%clk 0:02:11]} 19. Kh2 {[%clk 0:02:38.7]} 19... Rcd8
{[%clk 0:02:09.7]} 20. Bh3 {[%clk 0:02:38.2]} 20... Qe7 {[%clk 0:02:08.2]} 21.
h5 {[%clk 0:02:30.5]} 21... Bc8 {[%clk 0:02:04.6]} 22. Bxc8 {[%clk 0:02:24.8]}
22... Rxc8 {[%clk 0:02:05.5]} 23. Nh4 {[%clk 0:02:24.3]} 23... Kg7 {[%clk
0:01:57.7]} 24. Bc1 {[%clk 0:02:02.3]} 24... Kf7 {[%clk 0:01:41.7]} 25. Qh6
{[%clk 0:01:58.5]} 25... g5 {[%clk 0:01:19.8]} 26. Nf5 {[%clk 0:01:54.9]} 26...
Qe6 {[%clk 0:01:09.9]} 27. Qxh7+ {[%clk 0:01:43.1]} 27... Ke8 {[%clk 0:01:09.4]}
28. Ng7+ {[%clk 0:01:43.6]} 1-0

[Event "Early-Titled-Tuesday-Blitz-April-16-2024"]
[Site "Chess.com"]
[Date "2024.04.16"]
[Round "3"]
[White "Silvederione"]
[Black "Aradhya2000"]
[Result "0-1"]
[WhiteElo "2523"]
[BlackElo "2761"]
[TimeControl "180+1"]
[EndTime "8:26:17 PDT"]
[Termination "Aradhya2000 won by resignation"]

1. d4 {[%clk 0:03:00.9]} 1... d5 {[%clk 0:02:59.7]} 2. Nc3 {[%clk 0:03:00.7]}
2... Nf6 {[%clk 0:02:57.4]} 3. Bf4 {[%clk 0:03:00.8]} 3... c5 {[%clk 0:02:57.2]}
4. e3 {[%clk 0:03:01]} 4... Bg4 {[%clk 0:02:54.6]} 5. f3 {[%clk 0:02:58.1]} 5...
Bd7 {[%clk 0:02:54.1]} 6. Nb5 {[%clk 0:02:57.9]} 6... Bxb5 {[%clk 0:02:53.4]} 7.
Bxb5+ {[%clk 0:02:58.8]} 7... Nc6 {[%clk 0:02:54.1]} 8. c3 {[%clk 0:02:58.5]}
8... e6 {[%clk 0:02:53.7]} 9. Ne2 {[%clk 0:02:52.6]} 9... Rc8 {[%clk 0:02:53.1]}
10. O-O {[%clk 0:02:45.9]} 10... Bd6 {[%clk 0:02:52.4]} 11. Be5 {[%clk
0:02:20.7]} 11... O-O {[%clk 0:02:51.6]} 12. f4 {[%clk 0:02:20.6]} 12... Ng4
{[%clk 0:02:47.2]} 13. Rf3 {[%clk 0:02:08.8]} 13... Bxe5 {[%clk 0:02:37.6]} 14.
fxe5 {[%clk 0:02:06.6]} 14... Qh4 {[%clk 0:02:37]} 15. Bd3 {[%clk 0:01:42]}
15... Qxh2+ {[%clk 0:02:32.5]} 16. Kf1 {[%clk 0:01:42.4]} 16... Qh1+ {[%clk
0:02:32.1]} 17. Ng1 {[%clk 0:01:41.4]} 17... Nh2+ {[%clk 0:02:32.8]} 18. Kf2
{[%clk 0:01:41.7]} 18... Nxf3 {[%clk 0:02:32.9]} 19. Qxf3 {[%clk 0:01:42.6]}
19... f6 {[%clk 0:02:29.5]} 20. Nh3 {[%clk 0:01:08.6]} 20... Qxa1 {[%clk
0:02:25.3]} 21. Qh5 {[%clk 0:01:06.2]} 21... fxe5+ {[%clk 0:02:25.3]} 22. Kg3
{[%clk 0:00:56.4]} 22... e4 {[%clk 0:02:24.2]} 23. Ng5 {[%clk 0:00:51.2]} 23...
h6 {[%clk 0:02:23.7]} 24. Qg6 {[%clk 0:00:48.8]} 24... hxg5 {[%clk 0:02:22.2]}
25. Qxe6+ {[%clk 0:00:47.5]} 25... Kh7 {[%clk 0:02:22]} 26. Qh3+ {[%clk
0:00:45.9]} 26... Kg6 {[%clk 0:02:21.8]} 27. Qe6+ {[%clk 0:00:45.7]} 27... Rf6
{[%clk 0:02:21.8]} 28. Qxc8 {[%clk 0:00:46]} 28... Qe1+ {[%clk 0:02:17.9]} 29.
Kh2 {[%clk 0:00:46.3]} 29... exd3 {[%clk 0:02:12.7]} 30. Qe8+ {[%clk 0:00:44.6]}
30... Kh7 {[%clk 0:02:12.9]} 31. dxc5 {[%clk 0:00:39.6]} 31... Rh6+ {[%clk
0:02:12.8]} 0-1

[Event "Early-Titled-Tuesday-Blitz-April-16-2024"]
[Site "Chess.com"]
[Date "2024.04.16"]
[Round "3"]
[White "LubovMarkelova"]
[Black "soumeow"]
[Result "0-1"]
[WhiteElo "2151"]
[BlackElo "2384"]
[TimeControl "180+1"]
[EndTime "8:26:23 PDT"]
[Termination "soumeow won on time"]

1. e4 {[%clk 0:03:00.9]} 1... g6 {[%clk 0:03:00]} 2. d4 {[%clk 0:03:00.6]} 2...
Bg7 {[%clk 0:03:00.4]} 3. Nc3 {[%clk 0:03:00.9]} 3... d6 {[%clk 0:03:01]} 4. f3
{[%clk 0:03:01.3]} 4... a6 {[%clk 0:03:01.6]} 5. Be3 {[%clk 0:03:01.5]} 5... b5
{[%clk 0:03:02.1]} 6. Qd2 {[%clk 0:03:01.2]} 6... Bb7 {[%clk 0:03:01.7]} 7.
O-O-O {[%clk 0:02:58.7]} 7... Nd7 {[%clk 0:03:01.8]} 8. h4 {[%clk 0:02:57.3]}
8... h6 {[%clk 0:02:59.3]} 9. Nh3 {[%clk 0:02:51.9]} 9... e6 {[%clk 0:02:59.5]}
10. g4 {[%clk 0:02:33.2]} 10... Ne7 {[%clk 0:02:54.1]} 11. Bd3 {[%clk 0:02:29]}
11... Rc8 {[%clk 0:02:49.7]} 12. Nf4 {[%clk 0:02:26.9]} 12... c5 {[%clk
0:02:45.1]} 13. dxc5 {[%clk 0:02:24.4]} 13... Nxc5 {[%clk 0:02:38.2]} 14. Nfe2
{[%clk 0:02:18.8]} 14... b4 {[%clk 0:02:34]} 15. Nb1 {[%clk 0:02:15]} 15... Qa5
{[%clk 0:02:26.3]} 16. Bc4 {[%clk 0:01:35.5]} 16... Nxe4 {[%clk 0:02:23.5]} 17.
fxe4 {[%clk 0:01:34.4]} 17... Rxc4 {[%clk 0:02:24]} 18. Qxd6 {[%clk 0:01:31.7]}
18... Qc7 {[%clk 0:02:14.4]} 19. Qxc7 {[%clk 0:01:23]} 19... Rxc7 {[%clk
0:02:15.3]} 20. Nd2 {[%clk 0:01:19.8]} 20... O-O {[%clk 0:02:11]} 21. Ng3 {[%clk
0:01:15]} 21... Rfc8 {[%clk 0:02:10.8]} 0-1

[Event "Early-Titled-Tuesday-Blitz-April-16-2024"]
[Site "Chess.com"]
[Date "2024.04.16"]
[Round "3"]
[White "Mops_2004"]
[Black "maurovargas01"]
[Result "1-0"]
[WhiteElo "2789"]
[BlackElo "1903"]
[TimeControl "180+1"]
[EndTime "8:26:29 PDT"]
[Termination "Mops_2004 won by resignation"]

1. g3 {[%clk 0:03:00.9]} 1... e5 {[%clk 0:02:58.3]} 2. c4 {[%clk 0:03:00.5]}
2... Nc6 {[%clk 0:02:57.7]} 3. Bg2 {[%clk 0:03:00.1]} 3... f5 {[%clk 0:02:57.7]}
4. Nc3 {[%clk 0:02:55.5]} 4... Nf6 {[%clk 0:02:57.3]} 5. e3 {[%clk 0:02:54.3]}
5... g6 {[%clk 0:02:55.3]} 6. Nge2 {[%clk 0:02:53.8]} 6... Bg7 {[%clk
0:02:55.4]} 7. d4 {[%clk 0:02:49.9]} 7... e4 {[%clk 0:02:54.9]} 8. f3 {[%clk
0:02:46.3]} 8... exf3 {[%clk 0:02:52.6]} 9. Bxf3 {[%clk 0:02:46.5]} 9... O-O
{[%clk 0:02:52.3]} 10. O-O {[%clk 0:02:46.3]} 10... d6 {[%clk 0:02:48.7]} 11.
Nf4 {[%clk 0:02:40.4]} 11... Re8 {[%clk 0:02:44.3]} 12. Qc2 {[%clk 0:02:29]}
12... Nb4 {[%clk 0:02:25.4]} 13. Qg2 {[%clk 0:02:28.6]} 13... c6 {[%clk
0:02:18.2]} 14. a3 {[%clk 0:02:20.3]} 14... Nd3 {[%clk 0:02:08.7]} 15. Nxd3
{[%clk 0:02:19.6]} 15... Be6 {[%clk 0:01:54.7]} 16. b3 {[%clk 0:02:17.7]} 16...
Bf7 {[%clk 0:01:54.4]} 17. Bd2 {[%clk 0:02:17.5]} 17... g5 {[%clk 0:01:33.3]}
18. h4 {[%clk 0:02:14.3]} 18... gxh4 {[%clk 0:01:05.6]} 19. gxh4 {[%clk
0:02:13.1]} 19... Kh8 {[%clk 0:01:05.4]} 20. Kh1 {[%clk 0:02:12.4]} 20... Rg8
{[%clk 0:00:57.1]} 21. Qh3 {[%clk 0:02:12.3]} 21... Bg6 {[%clk 0:00:54.6]} 22.
Nf4 {[%clk 0:02:11.9]} 22... Ne4 {[%clk 0:00:46.3]} 23. Bxe4 {[%clk 0:02:00.6]}
23... fxe4 {[%clk 0:00:42.4]} 24. Nxg6+ {[%clk 0:02:00.7]} 24... hxg6 {[%clk
0:00:39.9]} 25. Nxe4 {[%clk 0:02:00.7]} 25... c5 {[%clk 0:00:30]} 26. Ng5 {[%clk
0:01:59.9]} 26... cxd4 {[%clk 0:00:27.4]} 27. Nf7+ {[%clk 0:01:59.6]} 1-0

[Event "Early-Titled-Tuesday-Blitz-April-16-2024"]
[Site "Chess.com"]
[Date "2024.04.16"]
[Round "3"]
[White "tsaruk_maks"]
[Black "MrVenky"]
[Result "1-0"]
[WhiteElo "2721"]
[BlackElo "2515"]
[TimeControl "180+1"]
[EndTime "8:26:32 PDT"]
[Termination "tsaruk_maks won by resignation"]

1. Nf3 {[%clk 0:02:54.7]} 1... Nf6 {[%clk 0:02:59.5]} 2. d4 {[%clk 0:02:53.1]}
2... g6 {[%clk 0:02:59.6]} 3. c4 {[%clk 0:02:53.5]} 3... Bg7 {[%clk 0:02:59.8]}
4. Nc3 {[%clk 0:02:52.3]} 4... O-O {[%clk 0:02:58.3]} 5. Bg5 {[%clk 0:02:51.8]}
5... d6 {[%clk 0:02:49.3]} 6. h4 {[%clk 0:02:51]} 6... Nh5 {[%clk 0:02:43.8]} 7.
Qd2 {[%clk 0:02:50.5]} 7... Nc6 {[%clk 0:02:33.7]} 8. O-O-O {[%clk 0:02:48.7]}
8... a6 {[%clk 0:02:17.4]} 9. d5 {[%clk 0:02:40.9]} 9... Na5 {[%clk 0:02:13]}
10. e4 {[%clk 0:02:39.5]} 10... c5 {[%clk 0:02:12.1]} 11. Bh6 {[%clk 0:02:37.8]}
11... b5 {[%clk 0:02:06.7]} 12. Bxg7 {[%clk 0:02:37.1]} 12... Kxg7 {[%clk
0:02:05.4]} 13. cxb5 {[%clk 0:02:38]} 13... axb5 {[%clk 0:02:02.2]} 14. Bxb5
{[%clk 0:02:38.9]} 14... Ba6 {[%clk 0:02:01.1]} 15. Bxa6 {[%clk 0:02:37.9]}
15... Rxa6 {[%clk 0:01:59.8]} 16. g4 {[%clk 0:02:38.8]} 16... Nf6 {[%clk
0:01:58.4]} 17. h5 {[%clk 0:02:39.1]} 17... Rh8 {[%clk 0:01:18.6]} 18. h6+
{[%clk 0:02:39.4]} 18... Kf8 {[%clk 0:01:17.6]} 19. e5 {[%clk 0:02:38.1]} 19...
Nxg4 {[%clk 0:01:07.2]} 20. Qf4 {[%clk 0:02:28.8]} 20... Nxe5 {[%clk 0:01:06.7]}
21. Nxe5 {[%clk 0:02:29.7]} 21... dxe5 {[%clk 0:01:06.6]} 22. Qxe5 {[%clk
0:02:30.6]} 22... f6 {[%clk 0:01:06.3]} 23. Qe2 {[%clk 0:02:28.5]} 23... Rd6
{[%clk 0:01:05]} 24. Rhe1 {[%clk 0:02:27.5]} 24... Qd7 {[%clk 0:00:55.8]} 25.
Ne4 {[%clk 0:02:25.6]} 25... Rb6 {[%clk 0:00:52.9]} 26. d6 {[%clk 0:02:13.2]}
26... Kf7 {[%clk 0:00:23]} 27. dxe7 {[%clk 0:02:13.7]} 27... Qf5 {[%clk
0:00:20.2]} 28. Nd6+ {[%clk 0:02:13.9]} 1-0

[Event "Early-Titled-Tuesday-Blitz-April-16-2024"]
[Site "Chess.com"]
[Date "2024.04.16"]
[Round "3"]
[White "bylavochka"]
[Black "IshviAggarwal"]
[Result "1-0"]
[WhiteElo "2365"]
[BlackElo "2132"]
[TimeControl "180+1"]
[EndTime "8:26:33 PDT"]
[Termination "bylavochka won by resignation"]

1. e4 {[%clk 0:03:00.9]} 1... e5 {[%clk 0:02:59.4]} 2. Nc3 {[%clk 0:02:57.2]}
2... Nc6 {[%clk 0:02:59.4]} 3. g3 {[%clk 0:02:54.9]} 3... Nf6 {[%clk 0:02:58.5]}
4. Bg2 {[%clk 0:02:55.2]} 4... Bb4 {[%clk 0:02:58.7]} 5. Nge2 {[%clk 0:02:55.1]}
5... O-O {[%clk 0:02:55.8]} 6. O-O {[%clk 0:02:55]} 6... Nd4 {[%clk 0:02:55.9]}
7. d3 {[%clk 0:02:51.3]} 7... c6 {[%clk 0:02:54.9]} 8. Nxd4 {[%clk 0:02:47]}
8... exd4 {[%clk 0:02:54.6]} 9. Ne2 {[%clk 0:02:47.5]} 9... c5 {[%clk
0:02:50.4]} 10. c3 {[%clk 0:02:27.8]} 10... dxc3 {[%clk 0:02:49.2]} 11. bxc3
{[%clk 0:02:28.7]} 11... Ba5 {[%clk 0:02:45]} 12. e5 {[%clk 0:02:27.7]} 12...
Ng4 {[%clk 0:02:39.8]} 13. d4 {[%clk 0:02:27.3]} 13... cxd4 {[%clk 0:02:39.2]}
14. cxd4 {[%clk 0:02:25.6]} 14... d5 {[%clk 0:02:35.8]} 15. h3 {[%clk
0:02:04.5]} 15... Nh6 {[%clk 0:02:33.6]} 16. Bxh6 {[%clk 0:01:38.2]} 16... gxh6
{[%clk 0:02:34.5]} 17. Nf4 {[%clk 0:01:33.1]} 17... Be6 {[%clk 0:02:33.6]} 18.
Nxe6 {[%clk 0:01:26.2]} 18... fxe6 {[%clk 0:02:33.6]} 19. Qg4+ {[%clk
0:01:26.6]} 19... Kh8 {[%clk 0:02:30.3]} 20. Qxe6 {[%clk 0:01:23.4]} 20... Bc3
{[%clk 0:02:30.9]} 21. Rab1 {[%clk 0:01:13.8]} 21... Bxd4 {[%clk 0:02:31.4]} 22.
Rxb7 {[%clk 0:01:13]} 22... Qg5 {[%clk 0:02:26.5]} 23. Qxd5 {[%clk 0:00:42.1]}
23... Qxe5 {[%clk 0:02:12.3]} 24. Qb3 {[%clk 0:00:23.4]} 24... Rac8 {[%clk
0:02:05.9]} 25. Qd3 {[%clk 0:00:19.1]} 25... Rc7 {[%clk 0:02:00.3]} 26. Rxc7
{[%clk 0:00:18.1]} 26... Qxc7 {[%clk 0:02:00.8]} 27. Qxd4+ {[%clk 0:00:18.4]}
1-0

[Event "Early-Titled-Tuesday-Blitz-April-16-2024"]
[Site "Chess.com"]
[Date "2024.04.16"]
[Round "3"]
[White "Veleamater"]
[Black "LikeWater"]
[Result "1-0"]
[WhiteElo "2405"]
[BlackElo "2584"]
[TimeControl "180+1"]
[EndTime "8:26:35 PDT"]
[Termination "Veleamater won by resignation"]

1. g3 {[%clk 0:03:00.9]} 1... g6 {[%clk 0:02:58.4]} 2. Bg2 {[%clk 0:03:01.1]}
2... Bg7 {[%clk 0:02:59.3]} 3. d3 {[%clk 0:03:02]} 3... d5 {[%clk 0:02:58.3]} 4.
Nf3 {[%clk 0:03:02.9]} 4... Nf6 {[%clk 0:02:58]} 5. O-O {[%clk 0:03:03.8]} 5...
O-O {[%clk 0:02:58.1]} 6. h3 {[%clk 0:03:04.3]} 6... a5 {[%clk 0:02:55.4]} 7.
Nc3 {[%clk 0:03:03.7]} 7... a4 {[%clk 0:02:50]} 8. a3 {[%clk 0:03:03.8]} 8... c6
{[%clk 0:02:46.3]} 9. e4 {[%clk 0:03:03.8]} 9... e6 {[%clk 0:02:46.2]} 10. Nd2
{[%clk 0:03:03.1]} 10... b5 {[%clk 0:02:44.4]} 11. f4 {[%clk 0:03:03]} 11...
Nfd7 {[%clk 0:02:17.5]} 12. e5 {[%clk 0:03:01.8]} 12... Qb6+ {[%clk 0:02:06.3]}
13. Kh2 {[%clk 0:03:01.4]} 13... f6 {[%clk 0:02:07]} 14. exf6 {[%clk 0:02:55.2]}
14... Bxf6 {[%clk 0:02:07.7]} 15. Nf3 {[%clk 0:02:55]} 15... c5 {[%clk
0:02:07.6]} 16. Re1 {[%clk 0:02:54.4]} 16... Re8 {[%clk 0:02:00.8]} 17. g4
{[%clk 0:02:54.2]} 17... Bb7 {[%clk 0:01:54.9]} 18. Ne2 {[%clk 0:02:36.2]} 18...
e5 {[%clk 0:01:51.2]} 19. f5 {[%clk 0:02:22.8]} 19... gxf5 {[%clk 0:01:45.7]}
20. gxf5 {[%clk 0:02:17.5]} 20... Bg7 {[%clk 0:01:37.6]} 21. Ng3 {[%clk
0:02:17.4]} 21... Qf6 {[%clk 0:01:25]} 22. Rg1 {[%clk 0:02:16]} 22... Nc6 {[%clk
0:01:20.8]} 23. Ng5 {[%clk 0:02:16.1]} 23... Nd4 {[%clk 0:01:18.4]} 24. Qh5
{[%clk 0:02:06.1]} 24... h6 {[%clk 0:01:15.2]} 25. Ne6 {[%clk 0:01:52.7]} 25...
Nxe6 {[%clk 0:01:14.5]} 26. fxe6 {[%clk 0:01:52.2]} 26... Rxe6 {[%clk
0:01:15.4]} 27. Nf5 {[%clk 0:01:48.9]} 27... Kh7 {[%clk 0:01:08.3]} 28. Be4
{[%clk 0:01:39.3]} 28... dxe4 {[%clk 0:01:02.5]} 29. Rxg7+ {[%clk 0:01:37.7]}
29... Qxg7 {[%clk 0:01:02.4]} 30. Nxg7 {[%clk 0:01:37.5]} 30... Kxg7 {[%clk
0:01:02.4]} 31. Bxh6+ {[%clk 0:01:37]} 1-0

[Event "Early-Titled-Tuesday-Blitz-April-16-2024"]
[Site "Chess.com"]
[Date "2024.04.16"]
[Round "3"]
[White "stolencandy13"]
[Black "superchess02"]
[Result "0-1"]
[WhiteElo "2558"]
[BlackElo "2883"]
[TimeControl "180+1"]
[EndTime "8:26:42 PDT"]
[Termination "superchess02 won by checkmate"]

1. d4 {[%clk 0:03:00.9]} 1... Nf6 {[%clk 0:02:58.9]} 2. Bf4 {[%clk 0:03:01.1]}
2... d5 {[%clk 0:02:58.7]} 3. e3 {[%clk 0:03:01.6]} 3... e6 {[%clk 0:02:58.7]}
4. Bd3 {[%clk 0:02:58.2]} 4... c5 {[%clk 0:02:58.3]} 5. c3 {[%clk 0:02:58.4]}
5... Nc6 {[%clk 0:02:57.8]} 6. Nd2 {[%clk 0:02:58.4]} 6... Bd6 {[%clk
0:02:54.6]} 7. Bxd6 {[%clk 0:02:54.7]} 7... Qxd6 {[%clk 0:02:55.5]} 8. f4 {[%clk
0:02:54.8]} 8... cxd4 {[%clk 0:02:50.3]} 9. cxd4 {[%clk 0:02:54]} 9... Bd7
{[%clk 0:02:50.6]} 10. Ngf3 {[%clk 0:02:53.6]} 10... Nb4 {[%clk 0:02:50.6]} 11.
Be2 {[%clk 0:01:49.3]} 11... Rc8 {[%clk 0:02:50.2]} 12. Rc1 {[%clk 0:01:46.4]}
12... Rxc1 {[%clk 0:02:35.2]} 13. Qxc1 {[%clk 0:01:47.3]} 13... Nxa2 {[%clk
0:02:35.9]} 14. Qb1 {[%clk 0:01:34]} 14... Nb4 {[%clk 0:02:35.3]} 15. Ne5 {[%clk
0:01:30.4]} 15... O-O {[%clk 0:02:27.4]} 16. O-O {[%clk 0:01:28.5]} 16... Rc8
{[%clk 0:02:27.1]} 17. f5 {[%clk 0:01:04.2]} 17... exf5 {[%clk 0:02:23.7]} 18.
Nxd7 {[%clk 0:01:02.4]} 18... Qxd7 {[%clk 0:02:24.6]} 19. Rxf5 {[%clk
0:00:51.2]} 19... Rc2 {[%clk 0:02:21.2]} 20. Rxf6 {[%clk 0:00:32.4]} 20... Rxd2
{[%clk 0:02:08.4]} 21. Rf2 {[%clk 0:00:24.3]} 21... Qe6 {[%clk 0:02:08.1]} 22.
Qf1 {[%clk 0:00:17.4]} 22... Qxe3 {[%clk 0:02:04.2]} 23. g3 {[%clk 0:00:10.4]}
23... Nc2 {[%clk 0:01:57.3]} 24. Kg2 {[%clk 0:00:09.8]} 24... Nxd4 {[%clk
0:01:54.6]} 25. Rxf7 {[%clk 0:00:09.6]} 25... Qxe2+ {[%clk 0:01:54.6]} 26. Kh3
{[%clk 0:00:09.1]} 26... Qh5# {[%clk 0:01:53.3]} 0-1

[Event "Early-Titled-Tuesday-Blitz-April-16-2024"]
[Site "Chess.com"]
[Date "2024.04.16"]
[Round "3"]
[White "martinmena"]
[Black "DanyKopy"]
[Result "1-0"]
[WhiteElo "2167"]
[BlackElo "2531"]
[TimeControl "180+1"]
[EndTime "8:26:48 PDT"]
[Termination "martinmena won by resignation"]

1. c4 {[%clk 0:03:00.9]} 1... e6 {[%clk 0:02:58]} 2. g3 {[%clk 0:02:57.7]} 2...
d5 {[%clk 0:02:58]} 3. Bg2 {[%clk 0:02:58.4]} 3... Nf6 {[%clk 0:02:58]} 4. Nf3
{[%clk 0:02:58.9]} 4... c5 {[%clk 0:02:57.9]} 5. O-O {[%clk 0:02:59.4]} 5... Nc6
{[%clk 0:02:58.2]} 6. cxd5 {[%clk 0:02:58]} 6... exd5 {[%clk 0:02:58.1]} 7. d4
{[%clk 0:02:58.6]} 7... Bg4 {[%clk 0:02:56.6]} 8. Bg5 {[%clk 0:02:26.5]} 8...
Bxf3 {[%clk 0:02:48.7]} 9. Bxf3 {[%clk 0:02:24.5]} 9... Nxd4 {[%clk 0:02:49.6]}
10. Bg2 {[%clk 0:02:23.4]} 10... Be7 {[%clk 0:02:46.9]} 11. Nc3 {[%clk
0:02:18.5]} 11... O-O {[%clk 0:02:42.7]} 12. Bxf6 {[%clk 0:01:45.3]} 12... Bxf6
{[%clk 0:02:42.5]} 13. e3 {[%clk 0:01:43.4]} 13... Nc6 {[%clk 0:02:37.6]} 14.
Nxd5 {[%clk 0:01:14.6]} 14... Rc8 {[%clk 0:02:17.2]} 15. Nxf6+ {[%clk
0:01:12.5]} 15... Qxf6 {[%clk 0:02:16.8]} 16. Qb3 {[%clk 0:01:10]} 16... b6
{[%clk 0:02:16.4]} 17. Rad1 {[%clk 0:01:03.5]} 17... Ne5 {[%clk 0:02:08.3]} 18.
e4 {[%clk 0:00:42.9]} 18... c4 {[%clk 0:01:59.4]} 19. Qc3 {[%clk 0:00:41.8]}
19... b5 {[%clk 0:01:58.2]} 20. Rd5 {[%clk 0:00:39.5]} 20... Rfd8 {[%clk
0:01:51.7]} 21. Qxe5 {[%clk 0:00:35.6]} 21... Rxd5 {[%clk 0:01:47.3]} 22. Qxf6
{[%clk 0:00:34.1]} 22... gxf6 {[%clk 0:01:45.8]} 23. exd5 {[%clk 0:00:34.5]}
23... Kf8 {[%clk 0:01:45.5]} 24. Re1 {[%clk 0:00:33.3]} 24... b4 {[%clk
0:01:44.1]} 25. d6 {[%clk 0:00:33.3]} 25... c3 {[%clk 0:01:38.4]} 26. d7 {[%clk
0:00:30.9]} 26... Rd8 {[%clk 0:01:37.1]} 27. bxc3 {[%clk 0:00:29.6]} 27... bxc3
{[%clk 0:01:36.8]} 28. Bc6 {[%clk 0:00:29.7]} 1-0

[Event "Early-Titled-Tuesday-Blitz-April-16-2024"]
[Site "Chess.com"]
[Date "2024.04.16"]
[Round "3"]
[White "IndianSchoolOfSuffering"]
[Black "djano"]
[Result "0-1"]
[WhiteElo "2407"]
[BlackElo "2602"]
[TimeControl "180+1"]
[EndTime "8:26:53 PDT"]
[Termination "djano won by resignation"]

1. e4 {[%clk 0:03:00.9]} 1... c5 {[%clk 0:02:58.8]} 2. Nf3 {[%clk 0:02:49.7]}
2... a6 {[%clk 0:02:58.9]} 3. c3 {[%clk 0:02:47.2]} 3... d5 {[%clk 0:02:48.2]}
4. exd5 {[%clk 0:02:46.2]} 4... Qxd5 {[%clk 0:02:49.1]} 5. d4 {[%clk 0:02:46.3]}
5... g6 {[%clk 0:02:49.7]} 6. Be2 {[%clk 0:02:41]} 6... Bg7 {[%clk 0:02:49.1]}
7. dxc5 {[%clk 0:02:36.6]} 7... Qxc5 {[%clk 0:02:48.9]} 8. Be3 {[%clk
0:02:36.1]} 8... Qc7 {[%clk 0:02:48.5]} 9. O-O {[%clk 0:02:34.3]} 9... Nf6
{[%clk 0:02:48.2]} 10. h3 {[%clk 0:02:32.3]} 10... O-O {[%clk 0:02:47.8]} 11.
Nbd2 {[%clk 0:02:30]} 11... Rd8 {[%clk 0:02:45.9]} 12. Qc1 {[%clk 0:02:17.6]}
12... Nc6 {[%clk 0:02:42.5]} 13. Nc4 {[%clk 0:02:02.5]} 13... Nd5 {[%clk
0:02:42.7]} 14. Bh6 {[%clk 0:01:59.8]} 14... b5 {[%clk 0:02:41.9]} 15. Bxg7
{[%clk 0:01:53.7]} 15... Kxg7 {[%clk 0:02:42.8]} 16. Ne3 {[%clk 0:01:53]} 16...
Nf4 {[%clk 0:02:43.2]} 17. Re1 {[%clk 0:01:52.1]} 17... Bb7 {[%clk 0:02:40]} 18.
Bf1 {[%clk 0:01:48.7]} 18... e5 {[%clk 0:02:32]} 19. a4 {[%clk 0:01:46.7]} 19...
Na5 {[%clk 0:02:27.4]} 20. Nd2 {[%clk 0:01:34.7]} 20... Qc6 {[%clk 0:02:10.8]}
21. axb5 {[%clk 0:01:20.6]} 21... axb5 {[%clk 0:02:09.9]} 22. b4 {[%clk
0:01:18]} 22... Nc4 {[%clk 0:01:55.4]} 23. Ndxc4 {[%clk 0:01:17.9]} 23... bxc4
{[%clk 0:01:55.7]} 24. Rxa8 {[%clk 0:01:14.8]} 24... Bxa8 {[%clk 0:01:47.8]} 25.
b5 {[%clk 0:01:01.1]} 25... Qxb5 {[%clk 0:01:32.9]} 26. Nxc4 {[%clk 0:01:00.2]}
26... Nxh3+ {[%clk 0:01:11.8]} 27. Kh2 {[%clk 0:00:51]} 27... Nxf2 {[%clk
0:01:09.3]} 28. Rxe5 {[%clk 0:00:47.3]} 28... Ng4+ {[%clk 0:01:08.6]} 0-1